[Event "Titled Tuesday Blitz May 24 Early 2022"]
[White "Zemlyanskii, Ivan"]
[Black "Derraugh, Geordie"]
[WhiteFideId "24249971"]
[BlackFideId "2603950"]
[WhiteElo "1815"]
[BlackElo "2116"]
[Result "1-0"]
[Round "10"]
[TimeControl "180+1"]
[Date "2022.05.25"]
[WhiteClock "0:00:09"]
[BlackClock "0:00:01"]

1. d4 {[%clk 0:02:49]}  Nf6 {[%clk 0:02:59]} 2. c4 {[%clk 0:02:49]}  g6 {[%clk 0:02:59]} 3. Nf3 {[%clk 0:02:47]}  Bg7 {[%clk 0:02:58]} 4. Nc3 {[%clk 0:02:44]}  d5 {[%clk 0:02:58]} 5. h4 {[%clk 0:02:43]}  h5 {[%clk 0:02:56]} 6. Bg5 {[%clk 0:02:43]}  dxc4 {[%clk 0:02:54]} 7. e4 {[%clk 0:02:42]}  Bg4 {[%clk 0:02:52]} 8. e5 {[%clk 0:02:37]}  Nd5 {[%clk 0:02:50]} 9. Bxc4 {[%clk 0:02:36]}  c6 {[%clk 0:02:43]} 10. O-O {[%clk 0:02:34]}  O-O {[%clk 0:02:40]} 11. Rc1 {[%clk 0:02:31]}  Qd7 {[%clk 0:02:30]} 12. Qd3 {[%clk 0:02:00]}  Nb4 {[%clk 0:02:08]} 13. Qe3 {[%clk 0:01:45]}  e6 {[%clk 0:02:03]} 14. Ne4 {[%clk 0:01:35]}  Bxf3 {[%clk 0:01:46]} 15. gxf3 {[%clk 0:01:26]}  Nd5 {[%clk 0:01:41]} 16. Bxd5 {[%clk 0:01:13]}  exd5 {[%clk 0:01:38]} 17. Nf6+ {[%clk 0:01:08]}  Bxf6 {[%clk 0:01:39]} 18. Bxf6 {[%clk 0:01:08]}  Kh7 {[%clk 0:01:39]} 19. Kh2 {[%clk 0:01:05]}  Qe6 {[%clk 0:01:28]} 20. Rg1 {[%clk 0:01:02]}  Nd7 {[%clk 0:01:28]} 21. Qf4 {[%clk 0:00:59]}  Nxf6 {[%clk 0:01:16]} 22. exf6 {[%clk 0:00:59]}  Rad8 {[%clk 0:01:17]} 23. Rg5 {[%clk 0:00:58]}  Rd6 {[%clk 0:01:15]} 24. Re5 {[%clk 0:00:40]}  Qxf6 {[%clk 0:01:12]} 25. Qg3 {[%clk 0:00:41]}  Re6 {[%clk 0:01:04]} 26. Rce1 {[%clk 0:00:41]}  Rfe8 {[%clk 0:01:05]} 27. f4 {[%clk 0:00:38]}  c5 {[%clk 0:00:52]} 28. dxc5 {[%clk 0:00:32]}  Rxe5 {[%clk 0:00:46]} 29. fxe5 {[%clk 0:00:30]}  Qf5 {[%clk 0:00:42]} 30. Re3 {[%clk 0:00:28]}  Re7 {[%clk 0:00:37]} 31. b4 {[%clk 0:00:23]}  d4 {[%clk 0:00:37]} 32. Rf3 {[%clk 0:00:23]}  Qe6 {[%clk 0:00:24]} 33. Rf6 {[%clk 0:00:18]}  Qxa2 {[%clk 0:00:22]} 34. Qd3 {[%clk 0:00:17]}  Qd5 {[%clk 0:00:19]} 35. f4 {[%clk 0:00:17]}  Kg7 {[%clk 0:00:18]} 36. Rd6 {[%clk 0:00:16]}  Qa2+ {[%clk 0:00:17]} 37. Kg3 {[%clk 0:00:17]}  Qa1 {[%clk 0:00:17]} 38. Qxd4 {[%clk 0:00:15]}  Qe1+ {[%clk 0:00:17]} 39. Kg2 {[%clk 0:00:14]}  Qxh4 {[%clk 0:00:15]} 40. e6+ {[%clk 0:00:13]}  f6 {[%clk 0:00:16]} 41. Qd5 {[%clk 0:00:11]}  Qxf4 {[%clk 0:00:14]} 42. Rd7 {[%clk 0:00:09]}  Qg4+ {[%clk 0:00:13]} 43. Kf2 {[%clk 0:00:09]}  Qf4+ {[%clk 0:00:13]} 44. Kg2 {[%clk 0:00:09]}  Qg4+ {[%clk 0:00:13]} 45. Kf2 {[%clk 0:00:09]}  Qf4+ {[%clk 0:00:11]} 46. Ke2 {[%clk 0:00:10]}  Qg4+ {[%clk 0:00:11]} 47. Kd3 {[%clk 0:00:10]}  Qg3+ {[%clk 0:00:10]} 48. Kc2 {[%clk 0:00:10]}  Qf2+ {[%clk 0:00:09]} 49. Kb3 {[%clk 0:00:10]}  Qe3+ {[%clk 0:00:08]} 50. Ka4 {[%clk 0:00:10]}  Rxd7 {[%clk 0:00:02]} 51. Qxd7+ {[%clk 0:00:09]}  Kh6 {[%clk 0:00:01]} 52. e7 {[%clk 0:00:08]}  b5+ {[%clk 0:00:02]} 53. Kxb5 {[%clk 0:00:08]}  Qe2+ {[%clk 0:00:01]} 54. Kc6 {[%clk 0:00:08]}  Qe4+ {[%clk 0:00:01]} 55. Kc7 {[%clk 0:00:09]}  Qe5+ {[%clk 0:00:01]} 56. Kd8 {[%clk 0:00:09]}  Qb8+ {[%clk 0:00:01]} 57. Qc8 {[%clk 0:00:09]}  Qxb4 {[%clk 0:00:01]} 58. e8=Q {[%clk 0:00:10]}  Qa5+ {[%clk 0:00:01]} 59. Qc7 {[%clk 0:00:09]}  Qd2+ {[%clk 0:00:01]} 60. Qed7 {[%clk 0:00:09]}  Qe3 {[%clk 0:00:01]} 61. Qg7+ {[%clk 0:00:09]}  Kg5 {[%clk 0:00:02]} 62. Qge7 {[%clk 0:00:08]}  Qd4+ {[%clk 0:00:02]} 63. Qcd6 {[%clk 0:00:08]}  Qa4 {[%clk 0:00:02]} 64. Qe3+ {[%clk 0:00:08]}  Kf5 {[%clk 0:00:01]} 65. Qd5+ {[%clk 0:00:07]}  Kg4 {[%clk 0:00:01]} 66. Qdf3+ {[%clk 0:00:08]}  Kh4 {[%clk 0:00:01]} 67. Qg3# {[%clk 0:00:09]} 1-0


[Site "https://www.chess.com"]

[Event "Titled Tuesday Blitz May 24 Early 2022"]
[White "Zorbos"]
[Black "Ovezdurdyyeva, Jemal"]
[BlackFideId "14001888"]
[WhiteElo "2473"]
[BlackElo "1946"]
[Result "1-0"]
[Round "10"]
[TimeControl "180+1"]
[Date "2022.05.25"]
[WhiteClock "0:01:15"]
[BlackClock "0:00:34"]

1. c4 {[%clk 0:02:54]}  Nf6 {[%clk 0:03:00]} 2. Nc3 {[%clk 0:02:54]}  g6 {[%clk 0:03:00]} 3. g3 {[%clk 0:02:50]}  d5 {[%clk 0:03:00]} 4. Bg2 {[%clk 0:02:50]}  d4 {[%clk 0:02:59]} 5. Nd5 {[%clk 0:02:51]}  Nxd5 {[%clk 0:02:52]} 6. Bxd5 {[%clk 0:02:50]}  Bg7 {[%clk 0:02:52]} 7. d3 {[%clk 0:02:49]}  c6 {[%clk 0:02:49]} 8. Bg2 {[%clk 0:02:49]}  O-O {[%clk 0:02:48]} 9. Nf3 {[%clk 0:02:49]}  Bf5 {[%clk 0:02:46]} 10. O-O {[%clk 0:02:50]}  Qd7 {[%clk 0:02:44]} 11. Re1 {[%clk 0:02:48]}  Bh3 {[%clk 0:02:44]} 12. Bh1 {[%clk 0:02:48]}  h6 {[%clk 0:02:43]} 13. b4 {[%clk 0:02:44]}  Qc7 {[%clk 0:02:37]} 14. Bb2 {[%clk 0:02:39]}  e5 {[%clk 0:02:37]} 15. e3 {[%clk 0:02:39]}  dxe3 {[%clk 0:02:35]} 16. Rxe3 {[%clk 0:02:40]}  Nd7 {[%clk 0:02:33]} 17. Qe2 {[%clk 0:02:35]}  Rae8 {[%clk 0:02:31]} 18. Re1 {[%clk 0:02:35]}  f6 {[%clk 0:02:21]} 19. Nh4 {[%clk 0:02:36]}  Kh7 {[%clk 0:02:15]} 20. f4 {[%clk 0:02:36]}  Qb6 {[%clk 0:02:07]} 21. d4 {[%clk 0:02:14]}  exd4 {[%clk 0:01:26]} 22. Rxe8 {[%clk 0:02:13]}  d3+ {[%clk 0:01:25]} 23. Qf2 {[%clk 0:02:13]}  d2 {[%clk 0:01:25]} 24. Qxb6 {[%clk 0:02:05]}  Nxb6 {[%clk 0:01:16]} 25. Bf3 {[%clk 0:01:48]}  dxe1=Q+ {[%clk 0:01:11]} 26. Rxe1 {[%clk 0:01:48]}  Nxc4 {[%clk 0:01:11]} 27. Bd4 {[%clk 0:01:48]}  Rd8 {[%clk 0:01:07]} 28. Bxa7 {[%clk 0:01:39]}  Ra8 {[%clk 0:01:07]} 29. Bc5 {[%clk 0:01:35]}  Rxa2 {[%clk 0:01:06]} 30. Re7 {[%clk 0:01:32]}  Nd2 {[%clk 0:00:51]} 31. Be2 {[%clk 0:01:27]}  g5 {[%clk 0:00:34]} 32. Bd3+ {[%clk 0:01:15]}  Kg8 {[%clk 0:00:34]} 33. Re8+ {[%clk 0:01:15]}  Kf7 {[%clk 0:00:34]} 34. Bg6# {[%clk 0:01:15]} 1-0


[Site "https://www.chess.com"]

[Event "Titled Tuesday Blitz May 24 Early 2022"]
[White "Andreikin, Dmitry"]
[Black "Samadov, Read"]
[WhiteFideId "4158814"]
[BlackFideId "13417444"]
[WhiteElo "2736"]
[BlackElo "2084"]
[Result "0-1"]
[Round "11"]
[TimeControl "180+1"]
[Date "2022.05.24"]
[WhiteClock "0:00:17"]
[BlackClock "0:00:28"]

1. e4 {[%clk 0:03:00]}  c5 {[%clk 0:02:59]} 2. Nc3 {[%clk 0:02:59]}  d6 {[%clk 0:02:59]} 3. Nge2 {[%clk 0:02:57]}  Nf6 {[%clk 0:02:56]} 4. Nf4 {[%clk 0:02:57]}  Nc6 {[%clk 0:02:54]} 5. Be2 {[%clk 0:02:56]}  g6 {[%clk 0:02:51]} 6. g4 {[%clk 0:02:56]}  h6 {[%clk 0:02:47]} 7. h4 {[%clk 0:02:54]}  Bg7 {[%clk 0:02:45]} 8. d3 {[%clk 0:02:54]}  Nd4 {[%clk 0:02:43]} 9. Be3 {[%clk 0:02:50]}  Nxe2 {[%clk 0:02:43]} 10. Qxe2 {[%clk 0:02:51]}  Nxg4 {[%clk 0:02:42]} 11. O-O-O {[%clk 0:02:51]}  h5 {[%clk 0:02:36]} 12. Rhg1 {[%clk 0:02:41]}  Rb8 {[%clk 0:02:35]} 13. Kb1 {[%clk 0:02:35]}  b5 {[%clk 0:02:34]} 14. Bc1 {[%clk 0:02:35]}  b4 {[%clk 0:02:32]} 15. Ncd5 {[%clk 0:02:35]}  e6 {[%clk 0:02:31]} 16. Ne3 {[%clk 0:02:31]}  Ne5 {[%clk 0:02:23]} 17. Nc4 {[%clk 0:02:25]}  a5 {[%clk 0:02:21]} 18. Rg5 {[%clk 0:02:22]}  Bf6 {[%clk 0:02:17]} 19. Nxe5 {[%clk 0:02:07]}  dxe5 {[%clk 0:02:17]} 20. Nxg6 {[%clk 0:02:08]}  fxg6 {[%clk 0:02:15]} 21. Rxg6 {[%clk 0:02:08]}  Rb7 {[%clk 0:01:28]} 22. Rdg1 {[%clk 0:02:08]}  Rf7 {[%clk 0:01:24]} 23. Rg8+ {[%clk 0:01:44]}  Rxg8 {[%clk 0:01:23]} 24. Rxg8+ {[%clk 0:01:43]}  Rf8 {[%clk 0:01:24]} 25. Qxh5+ {[%clk 0:01:43]}  Kd7 {[%clk 0:01:24]} 26. Rg4 {[%clk 0:01:31]}  Qe8 {[%clk 0:01:17]} 27. Qh6 {[%clk 0:01:29]}  Qf7 {[%clk 0:01:17]} 28. b3 {[%clk 0:01:27]}  Rh8 {[%clk 0:01:17]} 29. Qe3 {[%clk 0:01:27]}  Kc6 {[%clk 0:01:09]} 30. Qg3 {[%clk 0:01:27]}  Bd7 {[%clk 0:01:07]} 31. Bg5 {[%clk 0:01:26]}  Bxg5 {[%clk 0:01:02]} 32. hxg5 {[%clk 0:01:21]}  Kd6 {[%clk 0:00:59]} 33. g6 {[%clk 0:01:19]}  Qg7 {[%clk 0:00:58]} 34. Rg5 {[%clk 0:01:14]}  Be8 {[%clk 0:00:55]} 35. a4 {[%clk 0:01:13]}  Rh6 {[%clk 0:00:53]} 36. f4 {[%clk 0:01:02]}  Rxg6 {[%clk 0:00:53]} 37. fxe5+ {[%clk 0:01:02]}  Kc6 {[%clk 0:00:53]} 38. Rxg6 {[%clk 0:01:02]}  Qxg6 {[%clk 0:00:54]} 39. Qf2 {[%clk 0:00:59]}  Qg5 {[%clk 0:00:52]} 40. Qf8 {[%clk 0:00:59]}  Qd8 {[%clk 0:00:44]} 41. Qg8 {[%clk 0:00:47]}  Qe7 {[%clk 0:00:43]} 42. Qh8 {[%clk 0:00:44]}  Kb7 {[%clk 0:00:43]} 43. Qg8 {[%clk 0:00:43]}  Bc6 {[%clk 0:00:42]} 44. Kb2 {[%clk 0:00:41]}  Qd7 {[%clk 0:00:42]} 45. Kb1 {[%clk 0:00:40]}  Qe8 {[%clk 0:00:38]} 46. Qg7+ {[%clk 0:00:40]}  Kb6 {[%clk 0:00:39]} 47. Qf6 {[%clk 0:00:40]}  Qd7 {[%clk 0:00:36]} 48. Qf8 {[%clk 0:00:39]}  Qe8 {[%clk 0:00:36]} 49. Qd6 {[%clk 0:00:36]}  Qc8 {[%clk 0:00:35]} 50. Kc1 {[%clk 0:00:28]}  Qc7 {[%clk 0:00:35]} 51. Qxe6 {[%clk 0:00:28]}  Qg7 {[%clk 0:00:33]} 52. Kb2 {[%clk 0:00:23]}  Qg1 {[%clk 0:00:31]} 53. Qe7 {[%clk 0:00:18]}  Qd4+ {[%clk 0:00:32]} 54. Kb1 {[%clk 0:00:19]}  Qg1+ {[%clk 0:00:31]} 55. Kb2 {[%clk 0:00:19]}  Qd4+ {[%clk 0:00:31]} 56. Ka2 {[%clk 0:00:20]}  Qf2 {[%clk 0:00:28]} 57. Qd8+ {[%clk 0:00:19]}  Ka6 {[%clk 0:00:28]} 58. Qc8+ {[%clk 0:00:18]}  Kb6 {[%clk 0:00:28]} 59. Qb8+ {[%clk 0:00:18]}  Ka6 {[%clk 0:00:28]} 60. Kb1 {[%clk 0:00:17]}  Qg1+ {[%clk 0:00:27]} 61. Kb2 {[%clk 0:00:16]}  Qd4+ {[%clk 0:00:26]} 62. Ka2 {[%clk 0:00:16]}  Qf2 {[%clk 0:00:25]} 63. Qc8+ {[%clk 0:00:15]}  Kb6 {[%clk 0:00:23]} 64. Qd8+ {[%clk 0:00:15]}  Ka6 {[%clk 0:00:23]} 65. Kb2 {[%clk 0:00:15]}  Qd4+ {[%clk 0:00:22]} 66. Qxd4 {[%clk 0:00:15]}  cxd4 {[%clk 0:00:23]} 67. Kc1 {[%clk 0:00:16]}  Kb6 {[%clk 0:00:23]} 68. Kd2 {[%clk 0:00:16]}  Kc7 {[%clk 0:00:24]} 69. Ke2 {[%clk 0:00:17]}  Kd7 {[%clk 0:00:25]} 70. Kf3 {[%clk 0:00:17]}  Ke6 {[%clk 0:00:25]} 71. Kf4 {[%clk 0:00:18]}  Be8 {[%clk 0:00:26]} 72. Kg4 {[%clk 0:00:17]}  Kxe5 {[%clk 0:00:26]} 73. Kg5 {[%clk 0:00:17]}  Bd7 {[%clk 0:00:26]} 74. Kh4 {[%clk 0:00:15]}  Kf4 {[%clk 0:00:27]} 75. Kh5 {[%clk 0:00:15]}  Bg4+ {[%clk 0:00:27]} 76. Kg6 {[%clk 0:00:16]}  Bd1 {[%clk 0:00:27]} 77. Kf6 {[%clk 0:00:16]}  Bxc2 {[%clk 0:00:28]} 78. e5 {[%clk 0:00:17]}  Bxb3 {[%clk 0:00:27]} 79. e6 {[%clk 0:00:17]}  Bxa4 {[%clk 0:00:28]} 0-1


[Site "https://www.chess.com"]

[Event "Titled Tuesday Blitz May 24 Early 2022"]
[White "Aradhya, Garg"]
[Black "Al-Tarboush, Ward"]
[WhiteFideId "25006746"]
[BlackFideId "7601450"]
[WhiteElo "2169"]
[BlackElo "2294"]
[Result "1-0"]
[Round "11"]
[TimeControl "180+1"]
[Date "2022.05.25"]
[WhiteClock "0:02:25"]
[BlackClock "0:00:41"]

1. d4 {[%clk 0:02:56]}  b6 {[%clk 0:03:00]} 2. e4 {[%clk 0:02:56]}  Bb7 {[%clk 0:03:00]} 3. Bd3 {[%clk 0:02:56]}  e6 {[%clk 0:03:00]} 4. Nf3 {[%clk 0:02:57]}  c5 {[%clk 0:03:00]} 5. O-O {[%clk 0:02:58]}  cxd4 {[%clk 0:02:59]} 6. Nxd4 {[%clk 0:02:59]}  Bc5 {[%clk 0:02:58]} 7. Nc3 {[%clk 0:02:58]}  Bxd4 {[%clk 0:02:57]} 8. Nb5 {[%clk 0:02:59]}  Bc5 {[%clk 0:02:55]} 9. Qg4 {[%clk 0:02:59]}  g6 {[%clk 0:02:53]} 10. Bg5 {[%clk 0:02:58]}  f6 {[%clk 0:02:52]} 11. Bf4 {[%clk 0:02:58]}  e5 {[%clk 0:02:50]} 12. Bg3 {[%clk 0:02:58]}  Nc6 {[%clk 0:02:47]} 13. c3 {[%clk 0:02:57]}  a6 {[%clk 0:02:45]} 14. b4 {[%clk 0:02:57]}  Be7 {[%clk 0:02:44]} 15. Na3 {[%clk 0:02:56]}  Nh6 {[%clk 0:02:44]} 16. Qf3 {[%clk 0:02:54]}  Nf7 {[%clk 0:02:42]} 17. Nc4 {[%clk 0:02:54]}  O-O {[%clk 0:02:38]} 18. Ne3 {[%clk 0:02:54]}  Ng5 {[%clk 0:02:38]} 19. Qe2 {[%clk 0:02:54]}  Bd6 {[%clk 0:02:16]} 20. Rfd1 {[%clk 0:02:52]}  Ne6 {[%clk 0:02:09]} 21. Bc4 {[%clk 0:02:51]}  Qc7 {[%clk 0:01:49]} 22. Nd5 {[%clk 0:02:50]}  Qd8 {[%clk 0:01:45]} 23. Nxb6 {[%clk 0:02:45]}  Qxb6 {[%clk 0:01:43]} 24. Rxd6 {[%clk 0:02:45]}  Rad8 {[%clk 0:01:41]} 25. Rad1 {[%clk 0:02:45]}  Bc8 {[%clk 0:01:32]} 26. h4 {[%clk 0:02:38]}  Kg7 {[%clk 0:01:30]} 27. h5 {[%clk 0:02:38]}  Nf4 {[%clk 0:01:28]} 28. Bxf4 {[%clk 0:02:36]}  exf4 {[%clk 0:01:29]} 29. Qd2 {[%clk 0:02:33]}  Qc7 {[%clk 0:01:28]} 30. Qxf4 {[%clk 0:02:27]}  Ne5 {[%clk 0:01:23]} 31. h6+ {[%clk 0:02:27]}  Kh8 {[%clk 0:01:23]} 32. Rxf6 {[%clk 0:02:27]}  Rfe8 {[%clk 0:00:51]} 33. Rxg6 {[%clk 0:02:26]}  Rf8 {[%clk 0:00:41]} 34. Rg8+ {[%clk 0:02:25]} 1-0


[Site "https://www.chess.com"]

[Event "Titled Tuesday Blitz May 24 Early 2022"]
[White "Bacrot, Etienne"]
[Black "Srihari L R"]
[WhiteFideId "605506"]
[BlackFideId "46617116"]
[WhiteElo "2673"]
[BlackElo "2121"]
[Result "1-0"]
[Round "11"]
[TimeControl "180+1"]
[Date "2022.05.24"]
[WhiteClock "0:00:08"]
[BlackClock "0:00:11"]

1. Nf3 {[%clk 0:03:00]}  g6 {[%clk 0:02:55]} 2. h4 {[%clk 0:03:00]}  h5 {[%clk 0:02:54]} 3. d4 {[%clk 0:03:00]}  Bg7 {[%clk 0:02:54]} 4. e4 {[%clk 0:03:00]}  d6 {[%clk 0:02:53]} 5. Bg5 {[%clk 0:02:59]}  Bg4 {[%clk 0:02:51]} 6. Nbd2 {[%clk 0:02:59]}  Nc6 {[%clk 0:02:45]} 7. c3 {[%clk 0:03:00]}  Qc8 {[%clk 0:02:45]} 8. Bb5 {[%clk 0:02:53]}  a6 {[%clk 0:02:41]} 9. Ba4 {[%clk 0:02:53]}  Nf6 {[%clk 0:02:39]} 10. Qc2 {[%clk 0:02:52]}  O-O {[%clk 0:02:34]} 11. O-O-O {[%clk 0:02:51]}  b5 {[%clk 0:02:31]} 12. Bb3 {[%clk 0:02:51]}  e5 {[%clk 0:02:31]} 13. Bxf6 {[%clk 0:02:42]}  Bxf6 {[%clk 0:02:31]} 14. Bd5 {[%clk 0:02:42]}  Qe8 {[%clk 0:02:27]} 15. dxe5 {[%clk 0:02:30]}  dxe5 {[%clk 0:02:26]} 16. Nf1 {[%clk 0:02:21]}  Rb8 {[%clk 0:02:24]} 17. Ne3 {[%clk 0:02:20]}  b4 {[%clk 0:02:23]} 18. Qa4 {[%clk 0:01:49]}  Bd7 {[%clk 0:02:15]} 19. Qc2 {[%clk 0:01:30]}  bxc3 {[%clk 0:02:14]} 20. Qxc3 {[%clk 0:01:28]}  Nd4 {[%clk 0:02:12]} 21. Kb1 {[%clk 0:01:13]}  Bg4 {[%clk 0:02:03]} 22. Nxg4 {[%clk 0:01:13]}  hxg4 {[%clk 0:02:01]} 23. Nxd4 {[%clk 0:01:13]}  exd4 {[%clk 0:02:01]} 24. Qd3 {[%clk 0:01:14]}  Qb5 {[%clk 0:02:00]} 25. Qxb5 {[%clk 0:00:59]}  Rxb5 {[%clk 0:02:00]} 26. Rd3 {[%clk 0:00:38]}  Kg7 {[%clk 0:01:56]} 27. Bc4 {[%clk 0:00:37]}  Rb6 {[%clk 0:01:53]} 28. Rg3 {[%clk 0:00:32]}  d3 {[%clk 0:01:38]} 29. b3 {[%clk 0:00:31]}  d2 {[%clk 0:01:38]} 30. Rxg4 {[%clk 0:00:25]}  Rd8 {[%clk 0:01:38]} 31. Kc2 {[%clk 0:00:23]}  a5 {[%clk 0:01:31]} 32. h5 {[%clk 0:00:21]}  a4 {[%clk 0:01:31]} 33. h6+ {[%clk 0:00:20]}  Kf8 {[%clk 0:01:31]} 34. Rd1 {[%clk 0:00:16]}  axb3+ {[%clk 0:01:31]} 35. axb3 {[%clk 0:00:17]}  Rbd6 {[%clk 0:01:27]} 36. Rg3 {[%clk 0:00:14]}  Ra8 {[%clk 0:01:26]} 37. b4 {[%clk 0:00:12]}  Rb8 {[%clk 0:01:13]} 38. b5 {[%clk 0:00:11]}  c6 {[%clk 0:01:10]} 39. Rxd2 {[%clk 0:00:12]}  Rxd2+ {[%clk 0:01:06]} 40. Kxd2 {[%clk 0:00:12]}  cxb5 {[%clk 0:01:07]} 41. Bd5 {[%clk 0:00:12]}  Be5 {[%clk 0:01:06]} 42. Rh3 {[%clk 0:00:11]}  Ke7 {[%clk 0:01:04]} 43. Kc2 {[%clk 0:00:11]}  b4 {[%clk 0:01:04]} 44. g3 {[%clk 0:00:11]}  g5 {[%clk 0:01:03]} 45. Rh5 {[%clk 0:00:10]}  f6 {[%clk 0:01:00]} 46. h7 {[%clk 0:00:10]}  Rh8 {[%clk 0:00:59]} 47. Bg8 {[%clk 0:00:09]}  Kf8 {[%clk 0:00:56]} 48. Kb3 {[%clk 0:00:09]}  Bd6 {[%clk 0:00:56]} 49. Rh1 {[%clk 0:00:09]}  Kg7 {[%clk 0:00:56]} 50. Rd1 {[%clk 0:00:08]}  Bc5 {[%clk 0:00:55]} 51. f4 {[%clk 0:00:08]}  gxf4 {[%clk 0:00:55]} 52. gxf4 {[%clk 0:00:09]}  Be3 {[%clk 0:00:56]} 53. Rf1 {[%clk 0:00:09]}  Bd2 {[%clk 0:00:55]} 54. Kc4 {[%clk 0:00:10]}  Bc3 {[%clk 0:00:56]} 55. Kb3 {[%clk 0:00:09]}  Bd2 {[%clk 0:00:55]} 56. Rf3 {[%clk 0:00:09]}  Kf8 {[%clk 0:00:48]} 57. e5 {[%clk 0:00:09]}  fxe5 {[%clk 0:00:41]} 58. fxe5+ {[%clk 0:00:09]}  Ke7 {[%clk 0:00:41]} 59. Rf7+ {[%clk 0:00:09]}  Ke8 {[%clk 0:00:32]} 60. e6 {[%clk 0:00:09]}  Bg5 {[%clk 0:00:29]} 61. Kxb4 {[%clk 0:00:08]}  Be7+ {[%clk 0:00:30]} 62. Kc4 {[%clk 0:00:07]}  Ba3 {[%clk 0:00:29]} 63. Kd5 {[%clk 0:00:07]}  Be7 {[%clk 0:00:29]} 64. Ke5 {[%clk 0:00:07]}  Kd8 {[%clk 0:00:29]} 65. Kf5 {[%clk 0:00:07]}  Ke8 {[%clk 0:00:28]} 66. Rxe7+ {[%clk 0:00:07]}  Kxe7 {[%clk 0:00:28]} 67. Kg6 {[%clk 0:00:07]}  Kf8 {[%clk 0:00:15]} 68. Kf6 {[%clk 0:00:07]}  Ke8 {[%clk 0:00:12]} 69. Kg7 {[%clk 0:00:07]}  Rxh7+ {[%clk 0:00:11]} 70. Bxh7 {[%clk 0:00:07]}  Ke7 {[%clk 0:00:11]} 71. Bf5 {[%clk 0:00:08]} 1-0


[Site "https://www.chess.com"]

[Event "Titled Tuesday Blitz May 24 Early 2022"]
[White "Barp, Alberto"]
[Black "Kovalev, Vladislav"]
[WhiteFideId "872555"]
[BlackFideId "13504398"]
[WhiteElo "2229"]
[BlackElo "2530"]
[Result "1-0"]
[Round "11"]
[TimeControl "180+1"]
[Date "2022.05.24"]
[WhiteClock "0:00:12"]
[BlackClock "0:00:03"]

1. Nf3 {[%clk 0:03:00]}  Nf6 {[%clk 0:02:59]} 2. g3 {[%clk 0:02:54]}  g6 {[%clk 0:02:58]} 3. Bg2 {[%clk 0:02:55]}  Bg7 {[%clk 0:02:59]} 4. O-O {[%clk 0:02:55]}  O-O {[%clk 0:02:59]} 5. d4 {[%clk 0:02:54]}  d6 {[%clk 0:03:00]} 6. b3 {[%clk 0:02:54]}  e5 {[%clk 0:02:58]} 7. dxe5 {[%clk 0:02:54]}  dxe5 {[%clk 0:02:59]} 8. Ba3 {[%clk 0:02:55]}  e4 {[%clk 0:03:00]} 9. Ng5 {[%clk 0:02:50]}  e3 {[%clk 0:02:41]} 10. f4 {[%clk 0:02:48]}  Ng4 {[%clk 0:02:36]} 11. c3 {[%clk 0:02:43]}  Re8 {[%clk 0:02:29]} 12. Qxd8 {[%clk 0:02:35]}  Rxd8 {[%clk 0:02:30]} 13. h3 {[%clk 0:02:32]}  Nf2 {[%clk 0:02:29]} 14. Bc5 {[%clk 0:02:27]}  h6 {[%clk 0:02:11]} 15. Bxe3 {[%clk 0:02:16]}  Nd1 {[%clk 0:02:11]} 16. Bd2 {[%clk 0:02:16]}  hxg5 {[%clk 0:02:09]} 17. Rxd1 {[%clk 0:02:13]}  gxf4 {[%clk 0:02:10]} 18. gxf4 {[%clk 0:02:11]}  Nc6 {[%clk 0:02:03]} 19. Na3 {[%clk 0:01:43]}  Rxd2 {[%clk 0:01:03]} 20. Rxd2 {[%clk 0:01:44]}  Bxc3 {[%clk 0:01:03]} 21. Rad1 {[%clk 0:01:44]}  Bxd2 {[%clk 0:01:03]} 22. Rxd2 {[%clk 0:01:45]}  Bf5 {[%clk 0:01:00]} 23. Nb5 {[%clk 0:01:42]}  a6 {[%clk 0:00:33]} 24. Nxc7 {[%clk 0:01:39]}  Rc8 {[%clk 0:00:33]} 25. Nd5 {[%clk 0:01:36]}  Kg7 {[%clk 0:00:34]} 26. e4 {[%clk 0:01:31]}  Be6 {[%clk 0:00:34]} 27. Ne3 {[%clk 0:01:26]}  Nb4 {[%clk 0:00:31]} 28. f5 {[%clk 0:01:23]}  gxf5 {[%clk 0:00:22]} 29. exf5 {[%clk 0:01:24]}  Rc3 {[%clk 0:00:23]} 30. Kf2 {[%clk 0:01:19]}  Nd3+ {[%clk 0:00:22]} 31. Ke2 {[%clk 0:00:47]}  Nf4+ {[%clk 0:00:20]} 32. Kf3 {[%clk 0:00:31]}  Nxg2 {[%clk 0:00:20]} 33. Rxg2+ {[%clk 0:00:31]}  Kf6 {[%clk 0:00:17]} 34. fxe6 {[%clk 0:00:31]}  fxe6 {[%clk 0:00:18]} 35. Ke4 {[%clk 0:00:28]}  Rc1 {[%clk 0:00:18]} 36. Rf2+ {[%clk 0:00:27]}  Kg6 {[%clk 0:00:18]} 37. Rh2 {[%clk 0:00:25]}  b5 {[%clk 0:00:15]} 38. h4 {[%clk 0:00:26]}  Kh5 {[%clk 0:00:15]} 39. Nc2 {[%clk 0:00:22]}  a5 {[%clk 0:00:15]} 40. Nd4 {[%clk 0:00:22]}  b4 {[%clk 0:00:13]} 41. Nxe6 {[%clk 0:00:22]}  a4 {[%clk 0:00:13]} 42. Nf4+ {[%clk 0:00:22]}  Kh6 {[%clk 0:00:13]} 43. bxa4 {[%clk 0:00:22]}  Rc3 {[%clk 0:00:13]} 44. h5 {[%clk 0:00:22]}  Ra3 {[%clk 0:00:14]} 45. Rg2 {[%clk 0:00:21]}  Rxa4 {[%clk 0:00:14]} 46. Kf5 {[%clk 0:00:18]}  Ra5+ {[%clk 0:00:13]} 47. Kg4 {[%clk 0:00:18]}  Rg5+ {[%clk 0:00:10]} 48. Kh4 {[%clk 0:00:16]}  Ra5 {[%clk 0:00:10]} 49. Rg6+ {[%clk 0:00:16]}  Kh7 {[%clk 0:00:11]} 50. Rb6 {[%clk 0:00:17]}  Ra4 {[%clk 0:00:10]} 51. Kg4 {[%clk 0:00:14]}  Rxa2 {[%clk 0:00:10]} 52. Rxb4 {[%clk 0:00:14]}  Ra7 {[%clk 0:00:11]} 53. Rb5 {[%clk 0:00:13]}  Rg7+ {[%clk 0:00:12]} 54. Rg5 {[%clk 0:00:14]}  Ra7 {[%clk 0:00:12]} 55. Rf5 {[%clk 0:00:13]}  Ra1 {[%clk 0:00:13]} 56. Nh3 {[%clk 0:00:13]}  Rg1+ {[%clk 0:00:14]} 57. Kh4 {[%clk 0:00:14]}  Ra1 {[%clk 0:00:13]} 58. Ng5+ {[%clk 0:00:14]}  Kg8 {[%clk 0:00:13]} 59. h6 {[%clk 0:00:14]}  Rh1+ {[%clk 0:00:13]} 60. Nh3 {[%clk 0:00:14]}  Kh7 {[%clk 0:00:13]} 61. Rf6 {[%clk 0:00:14]}  Kh8 {[%clk 0:00:07]} 62. Kg4 {[%clk 0:00:13]}  Ra1 {[%clk 0:00:04]} 63. Ng5 {[%clk 0:00:12]}  Ra8 {[%clk 0:00:04]} 64. Kh5 {[%clk 0:00:12]}  Rb8 {[%clk 0:00:04]} 65. Rd6 {[%clk 0:00:12]}  Rc8 {[%clk 0:00:04]} 66. Rd8+ {[%clk 0:00:11]}  Rxd8 {[%clk 0:00:03]} 67. Nf7+ {[%clk 0:00:12]} 1-0


[Site "https://www.chess.com"]